[Event "Serbian-ch Semifinal 2024"]
[Site "Paracin"]
[Date "2024.02.08"]
[Round "5.4"]
[White "Tadic, Stefan"]
[Black "Arsovic, Zoran"]
[Result "1-0"]
[ECO "B67"]
[WhiteElo "2390"]
[BlackElo "2362"]
[Annotator "RC"]
[PlyCount "79"]
[EventDate "2024.02.04"]
[EventType "swiss"]
[EventCountry "SRB"]
[SourceTitle "playchess.com"]
[Source "ChessBase"]
[SourceQuality "1"]
[TimeControl "40/5400+30:1800+30"]

1. e4 {[%emt 0:00:04]} c5 {[%emt 0:02:03]} 2. Nf3 {[%emt 0:00:04]} d6 {[%emt 0:01:09]} 3. d4 {[%emt 0:00:36]} cxd4 {[%emt 0:00:11]} 4. Nxd4 {[%emt 0:00:05]} Nf6 {[%emt 0:00:43]} 5. Nc3 {[%emt 0:00:07]} Nc6 {[%emt 0:00:29]} 6. Bg5 {[%emt 0:00:05]} e6 {[%emt 0:01:00]} 7. Qd2 {[%emt 0:00:51]} a6 {[%emt 0:01:47]} 8. O-O-O {[%emt 0:00:47]} Bd7 {[%emt 0:00:25]} 9. Kb1 {[%emt 0:01:48]} Be7 {[%emt 0:04:19]} 10. f3 {[%emt 0:01:22]} h6 {[%emt 0:06:34]} 11. Be3 {[%emt 0:01:51]} Nxd4 {[%emt 0:01:11]} 12. Qxd4 {[%emt 0:01:46]} Bc6 {[%emt 0:01:09]} 13. h4 {[%emt 0:16:54]} d5 {[%emt 0:16:24]} 14. e5 {[%emt 0:10:11]} Nd7 {[%emt 0:00:22]} 15. f4 {[%emt 0:00:44]} h5 {[%emt 0:05:21]} 16. Qd2 {[%emt 0:05:02]} Bb4 {[%emt 0:09:17]} 17. Bd4 {[%emt 0:02:51]} g6 {[%emt 0:02:56]} 18. Qe3 {[%emt 0:02:23]} Qe7 {[%emt 0:05:43]} 19. Be2 {[%emt 0:02:22]} Bc5 {[%emt 0:02:47]} 20. Bf3 {[%emt 0:03:06]} Bxd4 {[%emt 0:12:00]} 21. Qxd4 {[%emt 0:03:14]} Qc5 {[%emt 0:00:51]} 22. Ne2 {[%emt 0:01:22]} b5 {[%emt 0:07:49]} 23. c3 {[%emt 0:10:42]} Ke7 {[%emt 0:06:38]} 24. Qd2 {[%emt 0:08:10]} a5 {[%emt 0:00:29]} 25. Nd4 {[%emt 0:00:14]} Rac8 {[%emt 0:02:06]} 26. g4 {[%emt 0:01:10]} hxg4 {[%emt 0:00:33]} 27. Bxg4 {[%emt 0:00:01]} Bb7 {[%emt 0:03:41]} 28. a3 {[%emt 0:06:03]} Rcg8 {[%emt 0:01:37]} 29. h5 {[%emt 0:02:15]} Qb6 {[%emt 0:01:04]} 30. hxg6 {[%emt 0:01:17]} Rxh1 {[%emt 0:00:16]} 31. Rxh1 {[%emt 0:00:01]} Rxg6 {[%emt 0:00:05]} 32. Bh5 {[%emt 0:00:04]} Rg8 {[%emt 0:03:39]} 33. f5 {[%emt 0:00:09]} Nc5 {[%emt 0:00:15]} 34. f6+ {[%emt 0:00:38]} Kd7 {[%emt 0:00:52]} 35. Bxf7 {[%emt 0:00:06]} Rf8 {[%emt 0:00:32]} 36. Rh7 {[%emt 0:00:19]} Kc8 {[%emt 0:00:06]} 37. Qh6 {[%emt 0:00:45]} Rd8 {[%emt 0:00:17]} 38. Rh8 {[%emt 0:00:41]} b4 {[%emt 0:00:32]} 39. Rxd8+ {[%emt 0:00:05]} Kxd8 {[%emt 0:00:23]} 40. Qf8+ {[%emt 0:00:04]} 1-0

[Event "Serbian-ch Semifinal 2024"]
[Site "Paracin"]
[Date "2024.02.08"]
[Round "5.5"]
[White "Nestorovic, Nikola"]
[Black "Pap, Misa"]
[Result "1/2-1/2"]
[ECO "C47"]
[WhiteElo "2465"]
[BlackElo "2422"]
[Annotator "RC"]
[PlyCount "117"]
[EventDate "2024.02.04"]
[EventType "swiss"]
[EventCountry "SRB"]
[SourceTitle "playchess.com"]
[Source "ChessBase"]
[SourceQuality "1"]
[TimeControl "40/5400+30:1800+30"]

1. e4 {[%emt 0:00:04]} e5 {[%emt 0:07:19]} 2. Nf3 {[%emt 0:00:06]} Nc6 {[%emt 0:00:06]} 3. Nc3 {[%emt 0:00:07]} Nf6 {[%emt 0:00:53]} 4. d4 {[%emt 0:00:07]} exd4 {[%emt 0:00:04]} 5. Nxd4 {[%emt 0:00:06]} Bb4 {[%emt 0:00:30]} 6. Nxc6 {[%emt 0:00:06]} bxc6 {[%emt 0:00:04]} 7. Bd3 {[%emt 0:00:06]} O-O {[%emt 0:00:15]} 8. O-O {[%emt 0:00:05]} Re8 {[%emt 0:00:23]} 9. Qf3 {[%emt 0:09:05]} h6 {[%emt 0:03:26]} 10. Bf4 {[%emt 0:05:46]} d6 {[%emt 0:05:27]} 11. h3 {[%emt 0:11:28]} Rb8 {[%emt 0:05:29]} 12. Ne2 {[%emt 0:26:46]} Bc5 {[%emt 0:06:24]} 13. b3 {[%emt 0:03:55]} Nd7 {[%emt 0:09:37]} 14. Be3 {[%emt 0:01:39]} Ne5 {[%emt 0:06:06]} 15. Qg3 {[%emt 0:00:02]} Bxe3 {[%emt 0:02:53]} 16. Qxe3 {[%emt 0:00:06]} c5 {[%emt 0:04:34]} 17. Ng3 {[%emt 0:04:23]} a5 {[%emt 0:02:07]} 18. Rad1 {[%emt 0:02:58]} Nc6 {[%emt 0:07:55]} 19. a4 {[%emt 0:08:30]} Nd4 {[%emt 0:02:29]} 20. Ne2 {[%emt 0:00:34]} Nxe2+ {[%emt 0:06:52]} 21. Qxe2 {[%emt 0:02:51]} Rb4 {[%emt 0:00:46]} 22. f4 {[%emt 0:01:25]} Qh4 {[%emt 0:08:33]} 23. Bc4 {[%emt 0:00:40]} Be6 {[%emt 0:01:44]} 24. Bb5 {[%emt 0:00:04]} Re7 {[%emt 0:02:19]} 25. Qf3 {[%emt 0:03:15]} Rd4 {[%emt 0:06:49]} 26. Rxd4 {[%emt 0:07:44]} cxd4 {[%emt 0:00:05]} 27. Bc6 {[%emt 0:01:20]} Bd7 {[%emt 0:02:23]} 28. Bxd7 {[%emt 0:05:58]} Rxd7 {[%emt 0:00:05]} 29. Qd3 {[%emt 0:00:22]} c5 {[%emt 0:00:12]} 30. Qb5 {[%emt 0:00:55]} Qd8 {[%emt 0:00:24]} 31. Qc6 {[%emt 0:02:11]} Qc7 {[%emt 0:03:01]} 32. Qd5 {[%emt 0:00:15]} Qb7 {[%emt 0:00:22]} 33. Qf5 {[%emt 0:02:31]} Re7 {[%emt 0:02:48]} 34. e5 {[%emt 0:00:40]} dxe5 {[%emt 0:00:58]} 35. fxe5 {[%emt 0:00:04]} Re6 {[%emt 0:00:43]} 36. Re1 {[%emt 0:01:05]} Qd5 {[%emt 0:00:38]} 37. Qd3 {[%emt 0:01:05]} f6 {[%emt 0:01:30]} 38. Qb5 {[%emt 0:00:18]} fxe5 {[%emt 0:00:29]} 39. Qxa5 {[%emt 0:00:02]} Rg6 {[%emt 0:01:16]} 40. Re2 {[%emt 0:00:54]} e4 {[%emt 0:01:01]} 41. Qb5 {[%emt 0:08:15]} Kh7 {[%emt 0:07:37]} 42. Rf2 {[%emt 0:03:18]} e3 {[%emt 0:11:02]} 43. Re2 {[%emt 0:00:01]} Qf5 {[%emt 0:03:16]} 44. a5 {[%emt 0:03:38]} Qc8 {[%emt 0:02:59]} 45. b4 {[%emt 0:00:48]} cxb4 {[%emt 0:01:05]} 46. Qxb4 {[%emt 0:00:07]} Qa6 {[%emt 0:00:29]} 47. Re1 {[%emt 0:01:25]} Qf6 {[%emt 0:01:22]} 48. Re2 {[%emt 0:00:23]} Qa6 {[%emt 0:02:06]} 49. Re1 {[%emt 0:00:10]} Qc6 {[%emt 0:00:13]} 50. Re2 {[%emt 0:00:03]} Qe4 {[%emt 0:01:57]} 51. Qa4 {[%emt 0:07:17]} Ra6 {[%emt 0:01:00]} 52. Qb5 {[%emt 0:00:25]} Ra7 {[%emt 0:00:35]} 53. a6 {[%emt 0:05:01]} Qg6 {[%emt 0:00:39]} 54. c3 {[%emt 0:02:30]} dxc3 {[%emt 0:02:45]} 55. Qc5 {[%emt 0:00:01]} Rxa6 {[%emt 0:00:53]} 56. Qxc3 {[%emt 0:01:07]} Qb1+ {[%emt 0:00:18]} 57. Re1 {[%emt 0:01:29]} Ra3 {[%emt 0:00:13]} 58. Qxe3 {[%emt 0:00:07]} Rxe3 {[%emt 0:00:04]} 59. Rxb1 {[%emt 0:00:01]} 1/2-1/2

[Event "Serbian-ch Semifinal 2024"]
[Site "Paracin"]
[Date "2024.02.08"]
[Round "5.6"]
[White "Injac, Teodora"]
[Black "Eric, Jovana"]
[Result "1-0"]
[ECO "A20"]
[WhiteElo "2439"]
[BlackElo "2124"]
[Annotator "TA"]
[PlyCount "123"]
[EventDate "2024.02.04"]
[EventType "swiss"]
[EventCountry "SRB"]
[SourceTitle "playchess.com"]
[Source "ChessBase"]
[SourceQuality "1"]
[TimeControl "40/5400+30:1800+30"]

{[%evp 9,123,2,29,19,27,9,16,4,44,42,34,26,38,40,27,31,40,37,44,41,64,50,44,35,40,38,35,48,61,37,35,26,27,18,42,14,15,8,25,5,19,20,21,24,22,16,27,14,14,14,14,13,11,13,26,18,13,12,15,12,14,9,10,9,23,23,41,41,41,18,41,41,41,12,41,26,26,26,28,15,28,28,29,10,15,8,8,6,8,8,8,1,2,2,3,3,122,122,122,123,517,481,29968,29969,29983,29984,29983,29981,29973,29976,29989,29990,29991,29990,29993,29994]} 1. c4 {[%emt 0:00:44]} e5 {[%emt 0:00:14]} 2. g3 {[%emt 0:00:37]} Nf6 {[%emt 0:00:35]} 3. Bg2 {[%emt 0:00:21]} c6 {[%emt 0:00:49]} 4. Nf3 {[%emt 0:01:36]} e4 {[%emt 0:01:08]} 5. Nd4 {[%emt 0:00:10]} Qb6 {[%emt 0:00:43]} 6. Nb3 {[%emt 0:01:15]} d5 {[%emt 0:02:20]} 7. d3 {[%emt 0:03:51]} Bb4+ {[%emt 0:02:16]} 8. Nc3 {[%emt 0:03:55] The position is equal.} exd3 {[%emt 0:05:08]} 9. cxd5 {[%emt 0:07:10]} O-O {[%emt 0:05:58]} 10. Qxd3 {[%emt 0:05:33]} Nxd5 {[%emt 0:11:50]} 11. O-O {[%emt 0:03:12]} Nxc3 {[%emt 0:10:16]} 12. bxc3 {[%emt 0:00:03]} Be7 {[%emt 0:00:06]} 13. Be3 {[%emt 0:10:55]} Qc7 {[%emt 0:01:03]} 14. Bf4 {[%emt 0:04:05]} Qd7 {[%emt 0:08:13]} 15. Qc2 {[%emt 0:12:30] White has more active pieces.} Na6 {[%emt 0:00:36]} 16. Rfd1 {[%emt 0:11:10]} Qf5 {[%emt 0:04:42]} 17. e4 {[%emt 0:02:07]} Qh5 {[%emt 0:01:20]} 18. Nd4 {[%emt 0:00:38]} Qa5 {[%emt 0:10:37]} 19. Rab1 {[%emt 0:03:57]} Nc5 {[%emt 0:01:59]} 20. h3 {[%emt 0:00:20]} Re8 {[%emt 0:04:10]} 21. Be3 {[%emt 0:04:40]} Bf8 {[%emt 0:01:06]} 22. Nb3 {[%emt 0:09:38]} Nxb3 {[%emt 0:02:11]} 23. axb3 {[%emt 0:00:03]} (23. Qxb3 b6 $11) 23... Be6 {[%emt 0:02:06]} 24. Ra1 {[%emt 0:03:15]} Qc7 {[%emt 0:00:52]} 25. c4 {[%emt 0:00:30]} ({Much weaker is} 25. Rxa7 Rxa7 26. Bxa7 b6 $19) (25. Bxa7 $2 {is the wrong capture.} b6 26. Qa2 Re7 27. Bxb6 Rxa2 28. Bxc7 Rxa1 (28... Bxb3 29. Bf4 $16) 29. Rxa1 Rxc7 $19) 25... a6 {[%emt 0:02:37]} 26. c5 {[%emt 0:02:10]} Rad8 {[%emt 0:01:18]} 27. b4 {[%emt 0:00:15]} f6 {[%emt 0:03:12]} 28. Ra3 {[%emt 0:02:38]} Rxd1+ {[%emt 0:03:32]} 29. Qxd1 {[%emt 0:00:02]} Rd8 {[%emt 0:00:22]} 30. Rd3 {[%emt 0:00:14]} Rxd3 {[%emt 0:00:26]} 31. Qxd3 {[%emt 0:00:02]} Qd7 {[%emt 0:00:47]} 32. Qxd7 {[%emt 0:00:17]} Bxd7 $11 {[%emt 0:00:05][%mdl 4096] Endgame. KBB-KBB} 33. f4 {[%emt 0:00:51]} Be6 {[%emt 0:00:58]} 34. Kf2 {[%emt 0:00:56]} Be7 {[%emt 0:00:43]} 35. Ke2 {[%emt 0:02:05]} Bd8 {[%emt 0:02:11]} 36. Kd3 {[%emt 0:00:52]} Ba2 {[%emt 0:02:41]} 37. Bd2 {[%emt 0:01:27]} Bc7 {[%emt 0:00:34]} 38. Kd4 {[%emt 0:01:27]} Kf7 {[%emt 0:01:32]} 39. h4 {[%emt 0:02:16][%cal Bh3h4,Bh4h5][%mdl 32]} Be6 {[%emt 0:01:09]} 40. Bf3 {[%emt 0:00:37]} Ke7 {[%emt 0:02:05]} 41. Bc3 {[%emt 0:04:43]} g6 {[%emt 0:03:49]} 42. h5 {[%emt 0:07:10]} Kf7 {[%emt 0:02:37]} 43. Ke3 {[%emt 0:01:29]} Bd8 {[%emt 0:05:12]} 44. g4 {[%emt 0:04:08]} Bb3 {[%emt 0:03:27]} 45. Be2 {[%emt 0:03:11]} Ba2 {[%emt 0:01:37]} 46. Bd3 {[%emt 0:01:38]} Bb3 {[%emt 0:02:21]} 47. e5 {[%emt 0:02:01]} fxe5 {[%emt 0:03:58]} 48. Bxe5 {[%emt 0:00:15]} a5 {[%emt 0:04:06]} 49. bxa5 {[%emt 0:00:03]} Bxa5 {[%emt 0:00:05]} 50. f5 {[%emt 0:04:45]} gxh5 {[%emt 0:00:54]} 51. gxh5 {[%emt 0:00:07]} Bd8 {[%emt 0:00:29]} 52. f6 {[%emt 0:05:44]} h6 {[%emt 0:06:01]} (52... Kg8 $11 {keeps the balance.}) 53. Bg6+ $16 {[%emt 0:00:25]} Kg8 {[%emt 0:01:16]} 54. Bd4 {[%emt 0:00:39] [#] And now Ke4 would win.} Kf8 $2 {[%emt 0:00:35][%mdl 8192] A mistake that costs the game.} (54... Bc7 $16) 55. Ke4 $18 {[%emt 0:00:21] Threatens to win with Kf5.} Bd5+ {[%emt 0:00:29]} (55... Bc2+ $18 56. Ke5 Bc7+ 57. Ke6 Bb3+ 58. Kd7 Bf4) 56. Kf5 {[%emt 0:00:44] White mates.} Bb3 {[%emt 0:01:23]} 57. Be3 {[%emt 0:00:58]} Bc2+ {[%emt 0:02:39]} 58. Ke6 {[%emt 0:00:12]} Bb3+ {[%emt 0:00:10]} 59. Ke5 {[%emt 0:00:41]} b6 {[%emt 0:01:37]} 60. cxb6 {[%emt 0:00:41][%cal Bc5b6,Bb6b7][%mdl 32]} Kg8 {[%emt 0:00:15]} 61. Bc5 {[%emt 0:00:43]} Bc4 {[%emt 0:00:34]} 62. b7 {[%emt 0:00:37] Weighted Error Value: White=0.05 (flawless) /Black=0.27 (precise) .  Loses game:     	---       	Black=1      Mistake:       	---       	Black=2      Inaccurate:     	White=2     	Black=2      OK:         	White=14    	Black=20     Best:        	White=4     	Black=2} 1-0

[Event "Serbian-ch Semifinal 2024"]
[Site "Paracin"]
[Date "2024.02.08"]
[Round "5.8"]
[White "Djordjevic, Vuk"]
[Black "Bryakin, Mikhail"]
[Result "0-1"]
[ECO "D36"]
[WhiteElo "2367"]
[BlackElo "2479"]
[Annotator "TA"]
[PlyCount "74"]
[EventDate "2024.02.04"]
[EventType "swiss"]
[EventCountry "SRB"]
[SourceTitle "playchess.com"]
[Source "ChessBase"]
[SourceQuality "1"]
[TimeControl "40/5400+30:1800+30"]

{[%evp 21,74,22,54,18,12,5,10,10,0,0,19,0,0,0,0,0,0,0,0,0,0,-15,0,0,0,-94,-97,-87,-105,-75,-77,-55,-25,-16,0,0,0,-18,-16,-181,-161,-610,31,-688,-689,-2555,-2540,-1839,-1578,-1665,-1653,-1745,-1116,-1116,-1077]} 1. d4 {[%emt 0:05:31]} d5 {[%emt 0:00:07]} 2. c4 {[%emt 0:00:23]} e6 {[%emt 0:00:20]} 3. Nc3 {[%emt 0:00:41]} Be7 {[%emt 0:00:39]} 4. Nf3 {[%emt 0:01:51]} Nf6 {[%emt 0:00:17]} 5. cxd5 {[%emt 0:02:07]} exd5 {[%emt 0:00:11]} 6. Qc2 {[%emt 0:01:48]} c6 {[%emt 0:00:26]} 7. Bg5 {[%emt 0:00:59]} O-O {[%emt 0:00:49]} 8. e3 {[%emt 0:01:52]} Nh5 {[%emt 0:00:34]} 9. Bxe7 {[%emt 0:03:00]} Qxe7 {[%emt 0:00:09]} 10. Bd3 {[%emt 0:08:11]} g6 {[%emt 0:01:19]} 11. O-O {[%emt 0:07:35]} Ng7 {[%emt 0:01:10]} 12. Rab1 {[%emt 0:01:57]} Bf5 {[%emt 0:01:34]} 13. b4 {[%emt 0:01:38]} a6 {[%emt 0:00:27]} 14. Ne1 {[%emt 0:06:55] The position is equal.} Nd7 {[%emt 0:00:37][%cal Bb8d7,Bd7b6,Bb6c4][%mdl 32]} 15. a4 {[%emt 0:00:47]} Nb6 {[%emt 0:07:03]} 16. Rb3 {[%emt 0:14:19]} Nc4 {[%emt 0:01:00]} 17. b5 {[%emt 0:05:47]} axb5 {[%emt 0:01:22]} 18. axb5 {[%emt 0:00:41]} Ra1 {[%emt 0:00:15]} 19. bxc6 {[%emt 0:02:45]} bxc6 {[%emt 0:01:35]} 20. Qe2 {[%emt 0:08:09]} Rfa8 {[%emt 0:03:29]} 21. Nf3 {[%emt 0:10:55]} Rxf1+ {[%emt 0:04:15]} 22. Kxf1 {[%emt 0:00:34]} Ra1+ {[%emt 0:02:12]} 23. Ne1 {[%emt 0:07:31]} (23. Rb1 $1 $11 {keeps the balance.} Rxb1+ (23... Qa3 24. Bxf5 Nxf5 25. Rxa1 $11) 24. Nxb1) 23... Qd6 {[%emt 0:01:16] Black is much more active.} 24. g3 {[%emt 0:01:44] [#]} Bg4 $1 {[%emt 0:02:30]} 25. Qc2 {[%emt 0:01:04]} Nf5 $40 {[%emt 0:12:21][%mdl 128] Black attacks with force.} 26. Bxc4 {[%emt 0:01:48] aiming for Bd3.} Qf6 {[%emt 0:01:16]} 27. Qd2 {[%emt 0:01:33] Threatens to win with Be2.} Bh3+ {[%emt 0:06:42]} 28. Ke2 {[%emt 0:01:49]} dxc4 {[%emt 0:02:30]} 29. Rb1 {[%emt 0:00:21]} Ra8 {[%emt 0:00:55]} 30. Rb4 $2 {[%emt 0:00:38] [#]} (30. Ne4 $11 {and White has nothing to worry.} Qe7 31. f3) 30... c5 $1 $19 {[%emt 0:07:51]} 31. Ne4 $2 {[%emt 0:00:35] [#]} (31. Rxc4 Nxd4+ 32. Rxd4 (32. exd4 $2 {perishes.} Qe6+ 33. Qe3 Qxc4+ 34. Qd3 Qe6+ 35. Qe3 cxd4 $19) 32... cxd4 33. Qxd4 Qa6+ 34. Nd3) 31... Qc6 $2 {[%emt 0:02:41]} ({Better is} 31... Nxd4+ $1 $19 32. exd4 Qe6) 32. Nxc5 $2 {[%emt 0:00:27][%mdl 8192]} (32. d5 $14 Bg4+ 33. f3) 32... Qh1 {[%emt 0:00:01] Black is clearly winning.} 33. Rb1 {[%emt 0:00:34]} Bg4+ {[%emt 0:01:51]} 34. f3 {[%emt 0:00:03] [#]} Bxf3+ $1 {[%emt 0:00:05][%mdl 512]} 35. Nxf3 {[%emt 0:00:35]} Qxb1 {[%emt 0:00:09]} 36. e4 {[%emt 0:00:43]} Ra2 {[%emt 0:00:35] ( -> ...c3)} 37. exf5 {[%emt 0:00:22]} c3 {[%emt 0:00:48] Weighted Error Value: White=0.75/Black=0.67.  Loses game:     	White=2     	---        Missed win:     	---       	Black=1      Mistake:       	White=2     	---        Inaccurate:     	White=1     	Black=1      OK:         	White=6     	Black=8      Best:        	White=2     	---        Strong:       	---       	Black=1} 0-1

[Event "Serbian-ch Semifinal 2024"]
[Site "Paracin"]
[Date "2024.02.08"]
[Round "5.9"]
[White "Cuzovic, Ognjen"]
[Black "Sedlak, Nikola"]
[Result "1-0"]
[ECO "D85"]
[WhiteElo "2068"]
[BlackElo "2463"]
[Annotator "TA"]
[PlyCount "95"]
[EventDate "2024.02.04"]
[EventType "swiss"]
[EventCountry "SRB"]
[SourceTitle "playchess.com"]
[Source "ChessBase"]
[SourceQuality "1"]
[TimeControl "40/5400+30:1800+30"]

{[%evp 19,95,33,22,27,6,0,0,0,0,0,0,0,0,-14,-22,-49,-47,-46,-48,-144,-149,-289,-213,-212,-225,-185,-188,-202,-142,-138,-125,-153,-151,-143,-134,-146,-61,-68,-68,-74,-80,-83,0,0,0,0,0,0,792,0,39,-16,216,224,601,572,29947,29948,29949,29949,29950,29948,8604,8563,29966,29967,29972,29973,29973,29974,29968,29975,29974,29976,29976,29977,29977,29978]} 1. d4 {[%emt 0:03:38]} Nf6 {[%emt 0:00:10]} 2. c4 {[%emt 0:00:08]} g6 {[%emt 0:00:08]} 3. Nc3 {[%emt 0:00:27]} d5 {[%emt 0:00:16]} 4. cxd5 {[%emt 0:00:17]} Nxd5 {[%emt 0:00:13]} 5. e4 {[%emt 0:00:13]} Nxc3 {[%emt 0:00:11]} 6. bxc3 {[%emt 0:00:09]} Bg7 {[%emt 0:00:11]} 7. Be3 {[%emt 0:00:25]} c5 {[%emt 0:00:23]} 8. Qd2 {[%emt 0:01:16]} Qa5 {[%emt 0:00:10]} 9. Nf3 {[%emt 0:00:30]} Nd7 {[%emt 0:00:39]} 10. Rc1 {[%emt 0:09:44]} O-O {[%emt 0:00:37]} 11. d5 {[%emt 0:01:49]} Nf6 {[%emt 0:01:19]} 12. c4 {[%emt 0:01:52]} Qxd2+ {[%emt 0:00:17]} 13. Nxd2 {[%emt 0:00:04] The position is equal.} b6 {[%emt 0:00:14]} 14. Be2 {[%emt 0:03:06]} Ng4 {[%emt 0:02:32]} 15. Bf4 {[%emt 0:02:21]} f5 {[%emt 0:09:37]} 16. Bxg4 {[%emt 0:03:31]} fxg4 {[%emt 0:01:03]} 17. Bg3 {[%emt 0:03:25]} e6 {[%emt 0:01:27]} 18. O-O {[%emt 0:02:27]} Ba6 {[%emt 0:12:45]} 19. f4 {[%emt 0:13:57]} (19. Rfe1 $15) 19... exd5 $17 {[%emt 0:01:35]} 20. cxd5 {[%emt 0:03:06]} (20. exd5 $17 Bd4+ 21. Kh1 (21. Bf2 Rxf4 22. g3 Rxf2 $17)) 20... Bd4+ {[%emt 0:08:39] This pair of bishops is nice.} 21. Bf2 {[%emt 0:12:07][%cal Of2d4]} Bxf1 {[%emt 0:00:46]} (21... Rxf4 22. Bxd4 Rxf1+ (22... Bxf1 $2 23. Be3 $18) 23. Nxf1 $11) 22. Bxd4 {[%emt 0:00:41]} cxd4 {[%emt 0:00:31]} (22... Rxf4 $2 23. Be3 (23. Rxf1 $2 Rxf1+ 24. Kxf1 cxd4 $19) 23... Rf7 24. Rxf1 $18 (24. Nxf1 h5 $18)) 23. Rxf1 $19 {[%emt 0:00:12][%mdl 4096] Endgame. KRR-KRN} Rac8 {[%emt 0:10:05] Threatens to win with ...Rc2.} 24. e5 {[%emt 0:03:55]} Kf7 {[%emt 0:15:48]} 25. Ne4 {[%emt 0:02:02] [#] Nd6+ is the strong threat.} Ke7 {[%emt 0:05:18]} 26. d6+ {[%emt 0:03:00]} Kd7 {[%emt 0:00:14]} 27. g3 {[%emt 0:03:21] [#]} Rc4 {[%emt 0:04:13]} (27... Rc2 $1 $17 28. Rd1 Re2 (28... Rxa2 29. Rxd4 Rc8 30. Rd1 $15) 29. Nf6+ Rxf6 30. exf6 Kxd6 31. Rxd4+ Ke6) 28. Re1 $15 {[%emt 0:03:19][%cal Oe5e6] And now e6+! would win.} Rfc8 {[%emt 0:07:52]} 29. Nf6+ {[%emt 0:03:14]} Ke6 {[%emt 0:00:06]} 30. Nxh7 {[%emt 0:01:44]} Rc1 {[%emt 0:00:19]} (30... d3 $17 31. Kf2 Rc2+ 32. Ke3 d2 (32... Rxa2 33. Kxd3 Rac2 34. Ng5+ Kd7 35. Nf7 $11) (32... Rxh2 33. Ng5+ Kd7 34. Kxd3 $11) 33. Ng5+ Kd7 (33... Kd5 34. Rd1 $16)) 31. Rxc1 $11 {[%emt 0:01:07]} Rxc1+ {[%emt 0:00:08] KR-KN} 32. Kf2 {[%emt 0:00:03] aiming for Nf8+.} Rc2+ {[%emt 0:00:50]} 33. Ke1 $1 {[%emt 0:01:02] Hoping for Nf8+.} d3 $2 {[%emt 0:05:25][%mdl 8192]} (33... Rxa2 $2 34. Nf8+ Kd5 35. d7 $18) (33... Rc8 $11) 34. Kd1 $2 {[%emt 0:02:00]} ({White has to play} 34. Nf8+ $18 Kf7 35. Nxg6 Re2+ 36. Kd1) 34... Rc8 {[%emt 0:08:53]} (34... Rxa2 $2 35. Nf8+ Kf7 36. Nxg6 Ra1+ (36... Kxg6 $2 {loses.} 37. d7 $18) 37. Kd2 $18) 35. Nf6 {[%emt 0:03:09]} (35. Kd2 $14) 35... Kf5 $2 {[%emt 0:02:34]} (35... a5 $11 {and Black has nothing to worry.}) 36. Kd2 {[%emt 0:00:40]} Rd8 $2 {[%emt 0:00:59]} (36... Rc2+ 37. Kxd3 Rc1 38. Nxg4 $18) (36... Ke6 37. Kxd3 Rc1) 37. Kxd3 $18 {[%emt 0:06:02]} Rxd6+ {[%emt 0:00:44]} 38. exd6 {[%emt 0:00:17]} Kxf6 {[%emt 0:00:10] KP-KP} 39. Ke4 {[%emt 0:00:28]} Ke6 {[%emt 0:00:08] [#]} 40. d7 $1 {[%emt 0:00:17][%mdl 512]} Kxd7 {[%emt 0:00:07]} 41. f5 {[%emt 0:30:04]} Ke7 {[%emt 0:10:09]} 42. fxg6 {[%emt 0:00:00] White mates.} b5 {[%emt 0:00:30]} 43. Kd5 {[%emt 0:00:00]} Kf6 {[%emt 0:00:35]} 44. Kc5 {[%emt 0:00:00]} Kxg6 {[%emt 0:01:24]} 45. Kxb5 {[%emt 0:00:00]} Kf5 {[%emt 0:00:05]} 46. Ka6 {[%emt 0:00:00]} Ke4 {[%emt 0:00:21]} 47. Kxa7 {[%emt 0:00:00]} Kf3 {[%emt 0:00:09]} 48. a4 {[%emt 0:00:00] Quite a comeback for White.   Weighted Error Value: White=0.34/Black=0.74.  Loses game:     	---       	Black=2      Missed win:     	White=1     	---        Mistake:       	White=2     	Black=3      Inaccurate:     	White=1     	Black=2      OK:         	White=8     	Black=12     Best:        	White=4     	Black=3      Strong:       	White=1     	---} 1-0

[Event "Serbian-ch Semifinal 2024"]
[Site "Paracin"]
[Date "2024.02.08"]
[Round "5.10"]
[White "Ivanovic, Marko"]
[Black "Milosevic, Milos"]
[Result "1/2-1/2"]
[ECO "C41"]
[WhiteElo "2245"]
[BlackElo "2388"]
[Annotator "RC"]
[PlyCount "82"]
[EventDate "2024.02.04"]
[EventType "swiss"]
[EventCountry "SRB"]
[SourceTitle "playchess.com"]
[Source "ChessBase"]
[SourceQuality "1"]
[TimeControl "40/5400+30:1800+30"]

1. e4 {[%emt 0:06:47]} e5 {[%emt 0:01:43]} 2. Nf3 {[%emt 0:00:05]} d6 {[%emt 0:00:06]} 3. d4 {[%emt 0:02:42]} exd4 {[%emt 0:01:03]} 4. Nxd4 {[%emt 0:00:03]} Nf6 {[%emt 0:00:06]} 5. Nc3 {[%emt 0:00:04]} Be7 {[%emt 0:00:03]} 6. Bf4 {[%emt 0:00:34]} O-O {[%emt 0:00:04]} 7. Qd2 {[%emt 0:00:08]} Nc6 {[%emt 0:00:03]} 8. O-O-O {[%emt 0:00:31]} Nxd4 {[%emt 0:00:04]} 9. Qxd4 {[%emt 0:00:04]} Be6 {[%emt 0:00:04]} 10. f3 {[%emt 0:01:24]} a6 {[%emt 0:00:03]} 11. Kb1 {[%emt 0:05:16]} b5 {[%emt 0:00:27]} 12. g4 {[%emt 0:07:18]} c5 {[%emt 0:00:08]} 13. Qd2 {[%emt 0:00:53]} b4 {[%emt 0:00:12]} 14. Nd5 {[%emt 0:00:22]} Nxd5 {[%emt 0:00:08]} 15. exd5 {[%emt 0:00:04]} Bd7 {[%emt 0:00:05]} 16. h4 {[%emt 0:06:03]} a5 {[%emt 0:01:05]} 17. g5 {[%emt 0:12:38]} Re8 {[%emt 0:05:15]} 18. Bd3 {[%emt 0:14:38]} Qc7 {[%emt 0:01:59]} 19. h5 {[%emt 0:03:29]} c4 {[%emt 0:02:12]} 20. Be4 {[%emt 0:03:37]} f5 {[%emt 0:22:26]} 21. gxf6 {[%emt 0:05:59]} Bxf6 {[%emt 0:00:02]} 22. h6 {[%emt 0:00:48]} g6 {[%emt 0:00:47]} 23. Rhg1 {[%emt 0:12:43]} Kf7 {[%emt 0:19:35]} 24. Qg2 {[%emt 0:00:37]} Rg8 {[%emt 0:00:18]} 25. Qg3 {[%emt 0:04:16]} Ra6 {[%emt 0:02:04]} 26. Be3 {[%emt 0:00:30]} Qd8 {[%emt 0:06:10]} 27. Bd4 {[%emt 0:06:22]} a4 {[%emt 0:01:26]} 28. f4 {[%emt 0:00:14]} Bxd4 {[%emt 0:10:02]} 29. Rxd4 {[%emt 0:00:01]} a3 {[%emt 0:07:23]} 30. Rxc4 {[%emt 0:00:50]} axb2 {[%emt 0:00:33]} 31. Qb3 {[%emt 0:02:07]} Qb6 {[%emt 0:01:59]} 32. Rf1 {[%emt 0:01:14]} Ra4 {[%emt 0:02:39]} 33. f5 {[%emt 0:00:44]} g5 {[%emt 0:00:55]} 34. Rc6 {[%emt 0:00:28]} Qa7 {[%emt 0:02:25]} 35. Rxd6 {[%emt 0:00:33]} Ra3 {[%emt 0:00:47]} 36. Qxb4 {[%emt 0:02:35]} Ra4 {[%emt 0:00:11]} 37. Qc3 {[%emt 0:01:32]} Rxe4 {[%emt 0:00:17]} 38. Qf6+ {[%emt 0:00:39]} Ke8 {[%emt 0:00:02]} 39. Ra6 {[%emt 0:00:29]} Qb8 {[%emt 0:01:01]} 40. Qc3 {[%emt 0:00:36]} Qe5 {[%emt 0:04:39]} 41. Qa5 {[%emt 0:12:02]} Rf8 {[%emt 0:05:21]} 1/2-1/2